fUST/lending_fUST_20241022
["ID","MTS","AMOUNT","RATE_DAILY","PERIOD"]
[340652284,1729597853346,-500.0,0.00016438,2]
[340652285,1729597853356,-500.0,0.00016438,2]
[340652286,1729597853365,-500.0,0.00016438,2]
[340652287,1729597853375,-500.0,0.00016438,2]
[340652288,1729597853385,-640.81071733,0.00016438,2]
[340652289,1729597853394,-503.64944335,0.00016438,2]
[340652290,1729597853404,-504.37992879,0.00016438,2]
[340652291,1729597853413,-500.0,0.00016438,2]
[340652292,1729597853422,-547.84,0.00016438,2]
[340652293,1729597853431,-517.08826814,0.00016438,2]
[340652294,1729597853441,-500.0,0.00016438,2]
[340652295,1729597853450,-542.56,0.00016438,2]
[340652296,1729597853459,-503.6429149,0.00016438,2]
[340652297,1729597853472,-507.85187037,0.00016438,2]
[340652298,1729597853483,-579.08,0.00016438,2]
[340652299,1729597853492,-526.3,0.00016438,2]
[340652300,1729597853502,-507.51918752,0.00016438,2]
[340652301,1729597853511,-524.89,0.00016438,2]
[340652302,1729597853521,-594.53206642,0.00016438,2]
[340652303,1729597853532,-500.0,0.00016438,2]
[340652304,1729597853541,-500.0,0.00016438,2]
[340652305,1729597853551,-506.34115508,0.00016438,2]
[340652306,1729597853560,-506.03061468,0.00016438,2]
[340652307,1729597853569,-537.32316508,0.00016438,2]
[340652308,1729597853579,-1233.77,0.00016438,2]
[340652309,1729597853588,-501.07664776,0.00016438,2]
[340652310,1729597853598,-641.62365192,0.00016438,2]
[340652311,1729597853607,-667.47,0.00016438,2]
[340652312,1729597853617,-302.73700551,0.00016438,2]
[340652313,1729597853626,-504.05576358,0.00016438,2]
[340652314,1729597853635,-609.44493758,0.00016438,2]
[340652315,1729597853645,-620.31,0.00016438,2]
[340652316,1729597853654,-554.24,0.00016438,2]
[340652317,1729597853664,-500.0,0.00016438,2]
[340652318,1729597853674,-500.0,0.00016438,2]
[340652319,1729597853683,-500.0,0.00016438,2]
[340652320,1729597853692,-315.82736257,0.00016438,2]
[340652321,1729597853702,-750.92,0.00016438,2]
[340652322,1729597853711,-500.0,0.00016438,2]
[340652323,1729597853721,-500.0,0.00016438,2]
[340652324,1729597853730,-501.93247239,0.00016438,2]
[340652325,1729597853739,-500.0,0.00016438,2]
[340652326,1729597853749,-500.0,0.00016438,2]
[340652327,1729597853758,-501.68629901,0.00016438,2]
[340652328,1729597853768,-500.0,0.00016438,2]
[340652329,1729597853778,-697.73,0.00016438,2]
[340652330,1729597853787,-658.42,0.00016438,2]
[340652331,1729597853797,-500.0,0.00016438,2]
[340652332,1729597853806,-17028.01,0.00016438,2]
[340652333,1729597853817,-736.51,0.00016438,2]
[340652334,1729597853826,-501.60760573,0.00016438,2]
[340652335,1729597853835,-500.0,0.00016438,2]
[340652336,1729597853844,-680.73,0.00016438,2]
[340652337,1729597853853,-501.05184276,0.00016438,2]
[340652338,1729597853862,-178.936755,0.00016445,2]
[340652339,1729597853871,-197.954297,0.00016445,2]
[340652340,1729597853881,-173.689221,0.00016445,2]
[340652341,1729597853890,-178.936755,0.00016445,2]
[340652342,1729597853900,-500.0,0.00016473,2]
[340652343,1729597853909,-500.0,0.00016473,2]
[340652344,1729597853918,-500.0,0.00016473,2]
[340652345,1729597853928,-605.76975151,0.00016476,2]
[340652346,1729597853941,-823.0,0.00016519,2]
[340652347,1729597853951,-506.41746272,0.00016547,2]
[340652348,1729597853960,-217.94073373,0.00016547,2]
[340652349,1729597853970,-1074.32804748,0.00016547,2]
[340652350,1729597853981,-1500.0,0.00016547,2]
[340652351,1729597853990,-1500.0,0.00016547,2]
[340652352,1729597853999,-1500.0,0.00016547,2]
[340652353,1729597854011,-465.01122887,0.00016554,2]
[340652354,1729597854021,-2500.0,0.00016634,2]
[340652355,1729597854031,-500.0,0.00016712,2]
[340652356,1729597854040,-500.0,0.00016712,2]
[340652357,1729597854049,-500.0,0.00016712,2]
[340652358,1729597854059,-500.0,0.00016712,2]
[340652359,1729597854069,-500.0,0.00016712,2]
[340652360,1729597854079,-177.13895553,0.00016712,2]
[340652361,1729597854088,-250.0,0.00016712,2]
[340652362,1729597854097,-500.0,0.00016712,2]
[340652363,1729597854107,-700.25,0.00016712,2]
[340652364,1729597854116,-500.0,0.00016712,2]
[340652365,1729597854125,-868.91,0.00016712,2]
[340652366,1729597854135,-500.0,0.00016712,2]
[340652367,1729597854144,-500.0,0.00016712,2]
[340652368,1729597854153,-500.0,0.00016712,2]
[340652369,1729597854164,-1000.0,0.00016712,2]
[340652370,1729597854174,-500.0,0.00016712,2]
[340652371,1729597854183,-563.16331354,0.00016712,2]
[340652372,1729597854193,-500.0,0.00016712,2]
[340652373,1729597854203,-500.0,0.00016712,2]
[340652374,1729597854213,-500.0,0.00016712,2]
[340652375,1729597854223,-500.0,0.00016712,2]
[340652376,1729597854233,-500.0,0.00016712,2]
[340652377,1729597854244,-151.5,0.00016712,2]
[340652378,1729597854256,-500.0,0.00016712,2]
[340652379,1729597854267,-500.0,0.00016712,2]
[340652380,1729597854278,-501.11019475,0.00016712,2]
[340652381,1729597854290,-500.54529076,0.00016712,2]
[340652382,1729597854302,-509.35683101,0.00016712,2]
[340652383,1729597854314,-500.33316036,0.00016712,2]
[340652384,1729597854324,-500.0,0.00016712,2]
[340652385,1729597854335,-500.0,0.00016712,2]
[340652386,1729597854347,-502.93733789,0.00016712,2]
[340652387,1729597854358,-500.0,0.00016712,2]
[340652388,1729597854369,-502.85895647,0.00016712,2]
[340652389,1729597854380,-151.8568645,0.00016712,2]
[340652390,1729597854390,-500.0,0.00016712,2]
[340652391,1729597854401,-500.0,0.00016712,2]
[340652392,1729597854412,-500.0,0.00016712,2]
[340652393,1729597854423,-500.0,0.00016712,2]
[340652394,1729597854434,-500.0,0.00016712,2]
[340652395,1729597854444,-506.38959006,0.00016712,2]
[340652396,1729597854456,-505.73841598,0.00016712,2]
[340652397,1729597854467,-500.0,0.00016712,2]
[340652398,1729597854479,-500.92216511,0.00016712,2]
[340652399,1729597854489,-1265.24,0.00016712,2]
[340652400,1729597854500,-500.0,0.00016712,2]
[340652401,1729597854511,-503.13590858,0.00016712,2]
[340652402,1729597854521,-835.97,0.00016712,2]
[340652403,1729597854532,-500.0,0.00016712,2]
[340652404,1729597854543,-500.0,0.00016712,2]
[340652405,1729597854552,-500.0,0.00016712,2]
[340652406,1729597854564,-616.49,0.00016712,2]
[340652407,1729597854574,-500.0,0.00016712,2]
[340652408,1729597854583,-501.84953394,0.00016712,2]
[340652409,1729597854593,-500.0,0.00016712,2]
[340652410,1729597854603,-1077.27,0.00016712,2]
[340652411,1729597854612,-501.42559106,0.00016712,2]
[340652412,1729597854623,-401.86643065,0.00016712,2]
[340652413,1729597854635,-500.0,0.00016712,2]
[340652414,1729597854645,-609.63,0.00016712,2]
[340652415,1729597854656,-701.08,0.00016712,2]
[340652416,1729597854666,-500.0,0.00016712,2]
[340652417,1729597854676,-500.0,0.00016712,2]
[340652418,1729597854686,-500.0,0.00016712,2]
[340652419,1729597854697,-500.0,0.00016712,2]
[340652420,1729597854707,-694.58,0.00016712,2]
[340652421,1729597854716,-504.98378884,0.00016712,2]
[340652422,1729597854726,-889.79,0.00016712,2]
[340652423,1729597854737,-501.59849768,0.00016712,2]
[340652424,1729597854748,-503.59170512,0.00016712,2]
[340652425,1729597854757,-152.39810612,0.00016712,2]
[340652426,1729597854767,-500.0,0.00016712,2]
[340652427,1729597854779,-500.0,0.00016712,2]
[340652428,1729597854788,-500.0,0.00016712,2]
[340652429,1729597854798,-500.0,0.00016712,2]
[340652430,1729597854847,-640.23,0.00016712,2]
[340652431,1729597854856,-500.0,0.00016712,2]
[340652432,1729597854866,-500.0,0.00016712,2]
[340652433,1729597854878,-500.0,0.00016712,2]
[340652434,1729597854888,-500.0,0.00016712,2]
[340652435,1729597854899,-500.0,0.00016712,2]
[340652436,1729597854909,-500.0,0.00016712,2]
[340652437,1729597854919,-207.91,0.00016712,2]
[340652438,1729597854929,-507.01702974,0.00016712,2]
[340652439,1729597854944,-500.0,0.00016712,2]
[340652440,1729597854955,-500.0,0.00016712,2]
[340652441,1729597854965,-500.27768754,0.00016712,2]
[340652442,1729597854976,-564.03,0.00016712,2]
[340652443,1729597854986,-502.39301775,0.00016712,2]
[340652444,1729597854995,-849.84,0.00016712,2]
[340652445,1729597855004,-502.11463865,0.00016712,2]
[340652446,1729597855018,-607.16,0.00016712,2]
[340652447,1729597855029,-501.64376478,0.00016712,2]
[340652448,1729597855040,-924.6,0.00016712,2]
[340652449,1729597855050,-505.60331211,0.00016712,2]
[340652450,1729597855060,-500.0,0.00016712,2]
[340652451,1729597855069,-500.0,0.00016712,2]
[340652452,1729597855079,-501.97810338,0.00016712,2]
[340652453,1729597855089,-509.72,0.00016712,2]
[340652454,1729597855099,-500.0,0.00016712,2]
[340652455,1729597855109,-955.39,0.00016712,2]
[340652456,1729597855119,-500.0,0.00016712,2]
[340652457,1729597855128,-599.7,0.00016712,2]
[340652458,1729597855138,-668.78,0.00016712,2]
[340652459,1729597855147,-500.0,0.00016712,2]
[340652460,1729597855158,-500.0,0.00016712,2]
[340652461,1729597855167,-771.39,0.00016712,2]
[340652462,1729597855177,-206.37,0.00016712,2]
[340652463,1729597855187,-501.4105085,0.00016712,2]
[340652464,1729597855197,-500.0,0.00016712,2]
[340652465,1729597855207,-500.0,0.00016712,2]
[340652466,1729597855216,-1066.54,0.00016712,2]
[340652467,1729597855228,-500.0,0.00016712,2]
[340652468,1729597855239,-500.0,0.00016712,2]
[340652469,1729597855250,-542.7,0.00016712,2]
[340652470,1729597855261,-500.0,0.00016712,2]
[340652471,1729597855271,-500.0,0.00016712,2]
[340652472,1729597855281,-170.3,0.00016712,2]
[340652473,1729597855290,-500.0,0.00016712,2]
[340652474,1729597855301,-500.0,0.00016712,2]
[340652475,1729597855311,-500.0,0.00016712,2]
[340652476,1729597855320,-500.0,0.00016712,2]
[340652477,1729597855329,-523.1,0.00016712,2]
[340652478,1729597855338,-500.0,0.00016712,2]
[340652479,1729597855348,-500.0,0.00016712,2]
[340652480,1729597855358,-505.18011986,0.00016712,2]
[340652481,1729597855367,-773.25,0.00016712,2]
[340652482,1729597855376,-505.04716083,0.00016712,2]
[340652483,1729597855386,-500.0,0.00016712,2]
[340652484,1729597855395,-195.47,0.00016712,2]
[340652485,1729597855404,-500.0,0.00016712,2]
[340652486,1729597855414,-500.0,0.00016712,2]
[340652487,1729597855423,-500.0,0.00016712,2]
[340652488,1729597855433,-501.02476693,0.00016712,2]
[340652489,1729597855443,-500.0,0.00016712,2]
[340652490,1729597855453,-521.7443014,0.00016712,2]
[340652491,1729597855463,-500.0,0.00016712,2]
[340652492,1729597855472,-922.77,0.00016712,2]
[340652493,1729597855482,-746.79,0.00016712,2]
[340652494,1729597855491,-860.77,0.00016712,2]
[340652495,1729597855501,-731.88,0.00016712,2]
[340652496,1729597855510,-500.0,0.00016712,2]
[340652497,1729597855520,-729.06,0.00016712,2]
[340652498,1729597855530,-500.0,0.00016712,2]
[340652499,1729597855540,-630.88,0.00016712,2]
[340652500,1729597855549,-500.0,0.00016712,2]
[340652501,1729597855559,-625.4,0.00016712,2]
[340652502,1729597855568,-503.94,0.00016712,2]
[340652503,1729597855577,-500.0,0.00016712,2]
[340652504,1729597855587,-500.0,0.00016712,2]
[340652505,1729597855598,-687.31,0.00016712,2]
[340652506,1729597855609,-500.0,0.00016712,2]
[340652507,1729597855620,-518.91261242,0.00016712,2]
[340652508,1729597855629,-560.77,0.00016712,2]
[340652509,1729597855641,-637.4,0.00016712,2]
[340652510,1729597855653,-500.0,0.00016712,2]
[340652511,1729597855664,-500.0,0.00016712,2]
[340652512,1729597855675,-978.37,0.00016712,2]
[340652513,1729597855687,-726.12,0.00016712,2]
[340652514,1729597855701,-769.77,0.00016712,2]
[340652515,1729597855712,-506.17,0.00016712,2]
[340652516,1729597855721,-612.25,0.00016712,2]
[340652517,1729597855732,-500.0,0.00016712,2]
[340652518,1729597855742,-500.0,0.00016712,2]
[340652519,1729597855751,-500.0,0.00016712,2]
[340652520,1729597855760,-500.0,0.00016712,2]
[340652521,1729597855771,-500.0,0.00016712,2]
[340652522,1729597855782,-500.0,0.00016712,2]
[340652523,1729597855793,-799.85,0.00016712,2]
[340652524,1729597855803,-500.0,0.00016712,2]
[340652525,1729597855817,-7910.97,0.00016712,2]
[340652526,1729597855826,-2948.41,0.00016712,2]
[340652527,1729597855837,-500.0,0.00016712,2]
[340652528,1729597855846,-352.13111102,0.00016712,2]
[340652529,1729597855858,-500.0,0.00016712,2]
[340652530,1729597855869,-500.0,0.00016712,2]
[340652531,1729597855879,-1070.37,0.00016712,2]
[340652532,1729597855889,-1671.56,0.00016712,2]
[340652533,1729597855900,-500.0,0.00016712,2]
[340652534,1729597855911,-756.57,0.00016712,2]
[340652535,1729597855923,-500.0,0.00016712,2]
[340652536,1729597855938,-500.0,0.00016712,2]
[340652537,1729597855949,-907.46,0.00016712,2]
[340652538,1729597855959,-500.0,0.00016712,2]
[340652539,1729597855968,-550.83,0.00016712,2]
[340652540,1729597855980,-1522.33,0.00016712,2]
[340652541,1729597855989,-500.0,0.00016712,2]
[340652542,1729597855999,-546.84624795,0.00016712,2]
[340652543,1729597856009,-200.0,0.00016712,2]
[340652544,1729597856020,-557.09,0.00016712,2]
[340652545,1729597856030,-6592.81,0.00016712,2]
[340652546,1729597856041,-553.07,0.00016712,2]
[340652547,1729597856051,-500.0,0.00016712,2]
[340652548,1729597856061,-500.0,0.00016712,2]
[340652549,1729597856070,-500.59385444,0.00016712,2]
[340652550,1729597856080,-1276.05,0.00016712,2]
[340652551,1729597856091,-503.35999399,0.00016712,2]
[340652552,1729597856101,-2295.03,0.00016712,2]
[340652553,1729597856111,-500.0,0.00016712,2]
[340652554,1729597856120,-500.0,0.00016712,2]
[340652555,1729597856130,-574.54,0.00016712,2]
[340652556,1729597856140,-752.57,0.00016712,2]
[340652557,1729597856150,-500.0,0.00016712,2]
[340652558,1729597856160,-500.0,0.00016712,2]
[340652559,1729597856170,-778.04,0.00016712,2]
[340652560,1729597856180,-550.85,0.00016712,2]
[340652561,1729597856190,-500.0,0.00016712,2]
[340652562,1729597856200,-500.0,0.00016712,2]
[340652563,1729597856210,-500.0,0.00016712,2]
[340652564,1729597856220,-500.0,0.00016712,2]
[340652565,1729597856230,-325.28896846,0.00016712,2]
[340652566,1729597856240,-1482.27,0.00016712,2]
[340652567,1729597856250,-620.34,0.00016712,2]
[340652568,1729597856259,-500.0,0.00016712,2]
[340652569,1729597856269,-564.77,0.00016712,2]
[340652570,1729597856278,-500.0,0.00016712,2]
[340652571,1729597856288,-501.1271928,0.00016712,2]
[340652572,1729597856298,-500.0,0.00016712,2]
[340652573,1729597856308,-755.02,0.00016712,2]
[340652574,1729597856318,-158.16648741,0.00016712,2]
[340652575,1729597856329,-862.34,0.00016712,2]
[340652576,1729597856338,-500.0,0.00016712,2]
[340652577,1729597856347,-500.0,0.00016712,2]
[340652578,1729597856357,-500.0,0.00016712,2]
[340652579,1729597856366,-915.67,0.00016712,2]
[340652580,1729597856376,-205.08658339,0.00016712,2]
[340652581,1729597856386,-745.93,0.00016712,2]
[340652582,1729597856395,-500.0,0.00016712,2]
[340652583,1729597856406,-500.0,0.00016712,2]
[340652584,1729597856415,-610.7,0.00016712,2]
[340652585,1729597856425,-763.2,0.00016712,2]
[340652586,1729597856434,-524.84,0.00016712,2]
[340652587,1729597856444,-3748.75,0.00016712,2]
[340652588,1729597856453,-500.0,0.00016712,2]
[340652589,1729597856463,-500.0,0.00016712,2]
[340652590,1729597856473,-1089.9,0.00016712,2]
[340652591,1729597856483,-500.0,0.00016712,2]
[340652592,1729597856494,-500.0,0.00016712,2]
[340652593,1729597856505,-607.48,0.00016712,2]
[340652594,1729597856516,-500.0,0.00016712,2]
[340652595,1729597856526,-2035.31,0.00016712,2]
[340652596,1729597856535,-953.67,0.00016712,2]
[340652597,1729597856544,-500.0,0.00016712,2]
[340652598,1729597856554,-500.0,0.00016712,2]
[340652599,1729597856563,-500.0,0.00016712,2]
[340652600,1729597856574,-500.0,0.00016712,2]
[340652601,1729597856586,-500.0,0.00016712,2]
[340652602,1729597856598,-547.84,0.00016712,2]
[340652603,1729597856608,-542.56,0.00016712,2]
[340652604,1729597856618,-500.0,0.00016712,2]
[340652605,1729597856628,-579.08,0.00016712,2]
[340652606,1729597856637,-526.3,0.00016712,2]
[340652607,1729597856647,-524.89,0.00016712,2]
[340652608,1729597856656,-500.0,0.00016712,2]
[340652609,1729597856666,-1233.77,0.00016712,2]
[340652610,1729597856677,-667.47,0.00016712,2]
[340652611,1729597856688,-620.31,0.00016712,2]
[340652612,1729597856699,-554.24,0.00016712,2]
[340652613,1729597856710,-500.0,0.00016712,2]
[340652614,1729597856720,-500.0,0.00016712,2]
[340652615,1729597856730,-500.0,0.00016712,2]
[340652616,1729597856742,-750.92,0.00016712,2]
[340652617,1729597856753,-500.0,0.00016712,2]
[340652618,1729597856763,-500.0,0.00016712,2]
[340652619,1729597856773,-500.0,0.00016712,2]
[340652620,1729597856785,-500.0,0.00016712,2]
[340652621,1729597856795,-500.0,0.00016712,2]
[340652622,1729597856806,-697.73,0.00016712,2]
[340652623,1729597856816,-658.42,0.00016712,2]
[340652624,1729597856826,-500.0,0.00016712,2]
[340652625,1729597856837,-15008.88610676,0.00016712,2]
[340652626,1729597857300,-500.73214295,0.00014973,2]
[340652627,1729597857311,-2019.12389324,0.00016712,2]
[340652628,1729597857321,-736.51,0.00016712,2]
[340652629,1729597857331,-500.0,0.00016712,2]
[340652630,1729597857342,-680.73,0.00016712,2]
[340652631,1729597857351,-500.0,0.00016723,2]
[340652632,1729597857361,-153.0,0.0001674,2]
[340652633,1729597857370,-153.0,0.0001674,2]
[340652634,1729597857380,-153.0,0.0001674,2]
[340652635,1729597857390,-153.0,0.0001674,2]
[340652636,1729597857401,-1000.0,0.00016747,2]
[340652637,1729597857412,-500.68233805,0.00016747,2]
[340652638,1729597857421,-1000.47668055,0.00016747,2]
[340652639,1729597857431,-500.0,0.00016773,2]
[340652640,1729597857440,-600.000001,0.000168,2]
[340652641,1729597857450,-1014.7013328,0.00016865,2]
[340652642,1729597857460,-500.0,0.00016986,2]
[340652643,1729597857471,-500.24087573,0.00016986,2]
[340652644,1729597857481,-500.0,0.00016986,2]
[340652645,1729597857491,-500.0,0.00016986,2]
[340652646,1729597857501,-500.0,0.00016986,2]
[340652647,1729597857511,-166.13618815,0.00016986,2]
[340652648,1729597857522,-500.0,0.00016986,2]
[340652649,1729597857533,-700.25,0.00016986,2]
[340652650,1729597857548,-500.0,0.00016986,2]
[340652651,1729597857558,-868.91,0.00016986,2]
[340652652,1729597857568,-500.0,0.00016986,2]
[340652653,1729597857578,-500.0,0.00016986,2]
[340652654,1729597857587,-500.0,0.00016986,2]
[340652655,1729597857598,-1000.0,0.00016986,2]
[340652656,1729597857609,-500.0,0.00016986,2]
[340652657,1729597857618,-500.0,0.00016986,2]
[340652658,1729597857628,-500.0,0.00016986,2]
[340652659,1729597857638,-420.96685707,0.00016986,2]
[340652660,1729597857651,-79.03314293,0.00016986,2]
[340652661,1729597857662,-500.0,0.00016986,2]
[340652662,1729597857673,-500.0,0.00016986,2]
[340652663,1729597857683,-500.0,0.00016986,2]
[340652664,1729597857692,-500.0,0.00016986,2]
[340652665,1729597857702,-500.0,0.00016986,2]
[340652666,1729597857712,-500.0,0.00016986,2]
[340652667,1729597857721,-500.0,0.00016986,2]
[340652668,1729597857731,-500.0,0.00016986,2]
[340652669,1729597857741,-500.0,0.00016986,2]
[340652670,1729597857751,-500.0,0.00016986,2]
[340652671,1729597857762,-500.0,0.00016986,2]
[340652672,1729597857773,-500.0,0.00016986,2]
[340652673,1729597857787,-835.97,0.00016986,2]
[340652674,1729597857798,-500.0,0.00016986,2]
[340652675,1729597857808,-500.0,0.00016986,2]
[340652676,1729597857818,-500.0,0.00016986,2]
[340652677,1729597857830,-500.0,0.00016986,2]
[340652678,1729597857842,-500.0,0.00016986,2]
[340652679,1729597857855,-1077.27,0.00016986,2]
[340652680,1729597857865,-500.0,0.00016986,2]
[340652681,1729597857876,-199.46686858,0.00016986,2]
[340652682,1729597859996,151.25,0.00010959,2]
[340652683,1729597870552,756.25,0.00010959,2]
[340652685,1729598087107,179.82,0.00011001,2]
[340652703,1729598948030,-300.0,0.00013118,2]
[340652704,1729598948059,-300.0,0.00013118,2]
[340652705,1729598948085,-24900.0,0.00013119,2]
[340652706,1729598948110,-1200.72387098,0.00013127,2]
[340652707,1729598948135,-3609.0475152,0.00013157,2]
[340652708,1729598948160,-160.45355,0.00013218,2]
[340652709,1729598948187,-918.81565646,0.00013227,2]
[340652710,1729598948211,-1089.4811394,0.00013227,2]
[340652711,1729598948478,-160.45355,0.00013286,2]
[340652712,1729598948506,-160.45355,0.00013355,2]
[340652713,1729598948538,-250.0,0.00013372,2]
[340652714,1729598948564,-160.45355,0.00013424,2]
[340652715,1729598948588,-160.45355,0.00013493,2]
[340652716,1729598948612,-3000.0,0.00013502,2]
[340652717,1729598948637,-160.45355,0.00013562,2]
[340652718,1729598948662,-160.45355,0.00013631,2]
[340652719,1729598948685,-505.56,0.00013698,2]
[340652720,1729598948710,-160.45355,0.000137,2]
[340652721,1729598948739,-160.45355,0.00013769,2]
[340652722,1729598948763,-160.45355,0.00013837,2]
[340652723,1729598948785,-568.45743713,0.00013873,2]
[340652724,1729598948809,-160.45355,0.00013906,2]
[340652725,1729598948833,-400.0,0.00013973,2]
[340652760,1729599032363,-165.118964,0.00015473,2]
[340652761,1729599032373,-165.118964,0.0001552,2]
[340652762,1729599032382,-24.19503537,0.00015568,2]
[340652791,1729599039279,-3980.0,0.00015102,2]
[340652797,1729599040461,-20920.0,0.00015102,2]
[340652798,1729599040471,-140.92392863,0.00015568,2]
[340652799,1729599040481,-165.118964,0.00015615,2]
[340652800,1729599040491,-165.118964,0.00015662,2]
[340652801,1729599040502,-165.118964,0.0001571,2]
[340652802,1729599040512,-165.118964,0.00015757,2]
[340652803,1729599040521,-165.118964,0.00015805,2]
[340652804,1729599040532,-165.118964,0.00015852,2]
[340652805,1729599040541,-250.0,0.0001589,2]
[340652806,1729599040553,-165.118964,0.000159,2]
[340652807,1729599040563,-165.118964,0.00015947,2]
[340652808,1729599040572,-165.118964,0.00015994,2]
[340652809,1729599040582,-165.118964,0.00016042,2]
[340652810,1729599040591,-500.0,0.00016055,2]
[340652811,1729599040601,-165.118964,0.00016089,2]
[340652812,1729599040610,-165.118964,0.00016137,2]
[340652813,1729599040620,-165.118964,0.00016184,2]
[340652814,1729599040629,-165.118964,0.00016232,2]
[340652815,1729599040639,-165.118964,0.00016279,2]
[340652816,1729599040649,-300.0,0.00016315,2]
[340652817,1729599040658,-300.0,0.00016315,2]
[340652818,1729599040669,-527.0,0.00016316,2]
[340652819,1729599040678,-1154.0,0.00016316,2]
[340652820,1729599040688,-1804.0,0.00016316,2]
[340652821,1729599040697,-1000.0,0.00016318,2]
[340652822,1729599040707,-364.79438019,0.00016338,2]
[340652823,1729599040716,-516.72895655,0.00016338,2]
[340652824,1729599040726,-300.0,0.000164,6]
[340652825,1729599040735,-171.62656773,0.00016407,2]
[340652826,1729599040745,-175.79573896,0.00016407,2]
[340652827,1729599040754,-612.54377097,0.00016408,2]
[340652828,1729599040763,-20729.14640833,0.00016408,2]
[340652852,1729599046171,-8990.89470187,0.00016408,2]
[340652853,1729599074861,258.1,0.00010959,2]
[340652854,1729599085363,215.08,0.00010959,2]
[340652855,1729599096102,179.24,0.00010959,2]
[340652856,1729599106640,896.2,0.00010959,2]
[340652857,1729599255175,273.37336231,9.9e-05,2]
[340652858,1729599270459,273.37336231,9.9e-05,2]
[340652859,1729599278270,273.37336231,9.9e-05,2]
[340652860,1729599286374,273.37336231,9.9e-05,2]
[340652861,1729599294212,273.37336231,9.9e-05,2]
[340652862,1729599302589,273.37336231,9.9e-05,2]
[340652863,1729599310900,273.37336231,9.9e-05,2]
[340652864,1729599319497,273.37336231,9.9e-05,2]
[340652865,1729599327383,273.37336231,9.9e-05,2]
[340652866,1729599335930,273.37336231,9.9e-05,2]
[340652867,1729599344328,273.37336231,9.9e-05,2]
[340652868,1729599352413,273.37336231,9.9e-05,2]
[340652869,1729599360369,273.37336231,9.9e-05,2]
[340652870,1729599369714,273.37336231,9.9e-05,2]
[340652874,1729599377562,273.37336231,9.9e-05,2]
[340652875,1729599385823,273.37336231,9.9e-05,2]
[340652876,1729599393648,273.37336231,9.9e-05,2]
[340652877,1729599401772,273.37336231,9.9e-05,2]
[340652878,1729599410127,273.37336231,9.9e-05,2]
[340652879,1729599418342,273.37336231,9.9e-05,2]
[340652880,1729599426182,273.37336231,9.9e-05,2]
[340652881,1729599434376,273.37336231,9.9e-05,2]
[340652882,1729599442719,273.37336231,9.9e-05,2]
[340652883,1729599451896,273.37336231,9.9e-05,2]
[340652884,1729599459727,273.37336231,9.9e-05,2]
[340652885,1729599467976,273.37336231,9.9e-05,2]
[340652886,1729599476349,273.37336231,9.9e-05,2]
[340652887,1729599485329,273.37336231,9.9e-05,2]
[340652888,1729599493151,273.37336231,9.9e-05,2]
[340652889,1729599501209,273.37336231,9.9e-05,2]
[340652890,1729599509046,273.37336231,9.9e-05,2]
[340652891,1729599517180,273.37336231,9.9e-05,2]
[340652892,1729599525160,273.37336231,9.9e-05,2]
[340652893,1729599533249,273.37336231,9.9e-05,2]
[340652894,1729599541696,273.37336231,9.9e-05,2]